[Event "Sautron Loire Masters 1st"]
[Site "Sautron"]
[Date "2012.11.01"]
[Round "7"]
[White "Ivanov, Jordan"]
[Black "Shishkin, Vadim"]
[Result "1/2-1/2"]
[ECO "D99"]
[WhiteElo "2374"]
[BlackElo "2496"]
[Annotator "Stohl/Primel,D"]
[PlyCount "56"]
[EventDate "2012.10.27"]
[EventType "tourn"]
[EventRounds "9"]
[EventCountry "FRA"]
[EventCategory "4"]
[SourceTitle "EXT 2014"]
[Source "ChessBase"]
[SourceDate "2013.11.20"]
[SourceVersion "1"]
[SourceVersionDate "2013.11.20"]
[SourceQuality "1"]
[TimeControl "40/5400+30:1800+30"]
[WhiteClock "1:30:00"]
[BlackClock "1:30:00"]

1. Nf3 {[%emt 0:01:03]} Nf6 {[%emt 0:00:00]} 2. c4 {[%emt 0:00:08]} g6 {
[%emt 0:00:20]} 3. Nc3 {[%emt 0:00:12]} d5 {[%emt 0:00:09]} 4. cxd5 {[%emt 0:
00:07]} Nxd5 {[%emt 0:00:02]} 5. Qb3 {[%emt 0:00:26] La ligne critique depuis
quelques années} (5. e4) (5. Qa4+) (5. Qc2 $5 {Une idée récente}) 5... Nb6 {
[%emt 0:00:22]} 6. d4 {[%emt 0:00:17]} Bg7 {[%emt 0:00:37]} 7. e4 {[%emt 0:00:
22]} (7. Bg5) (7. Bf4) 7... Bg4 $1 {[%emt 0:01:09][%csl Rd4]} (7... O-O 8. Be3
Bg4 9. Rd1 $14 {[%csl Gd4,Ge4]}) 8. Be3 {[%emt 0:01:41]} O-O {[%emt 0:07:05]} (
8... Bxf3 9. gxf3 Bxd4 10. O-O-O $44 {Fressinet,L (2707)-So,W (2673) Tata
Steel-B 73rd 2011 (6) 0-1}) 9. O-O-O {[%emt 0:01:38]} (9. Rd1 {[%csl Gd4,Ge4]
[%cal Gf1e2,Gc3e2,Ge2d4]}) 9... e6 {[%emt 0:13:43][%csl Gd5]} (9... Nc6 10. d5
Ne5 11. h3 $1 Bxf3 12. gxf3 Nxf3 13. Be2 Ne5 14. f4 Ned7 15. h4 h5 16. Rhg1 {
[%cal Ge2h5,Gg1g8]} Kh7 17. e5 $36 {[%cal Gb3c2,Ge2h5]}) 10. Ne2 {[%emt 0:07:
11][%csl Gd4,Rf1] Renforce le centre mais au détriment du développement et les
Noirs sont proches de l'égalité.} Nc6 $6 {[%emt 0:06:15]} 11. h3 $6 {[%emt 0:
02:18] Trop lent} (11. Ne5 $1 Bxe2 12. Bxe2 $14 {[%csl Gd4,Ge4] Stohl}) 11...
Bxf3 {[%emt 0:03:56]} (11... Na5) 12. gxf3 {[%emt 0:00:04]} Na5 $1 {[%emt 0:00:
08][%csl Gc4]} 13. Qc2 {[%emt 0:01:43]} Nac4 $132 {[%emt 0:00:16]} 14. h4 {
[%emt 0:04:51]} Nxe3 {[%emt 0:02:13]} (14... c5 $1 {[%csl Rc1][%cal Gg7b2]} 15.
dxc5 (15. Kb1 Rc8 (15... cxd4 16. Nxd4 Rc8 $132 {[%cal Gc8c2]})) 15... Bxb2+
16. Qxb2 Qxd1+ $1) 15. fxe3 {[%emt 0:00:06]} Qe7 {[%emt 0:15:15]} 16. Nc3 {
[%emt 0:08:45]} Rfd8 {[%emt 0:06:36]} (16... c5 {Plus dynamique} 17. f4 cxd4
18. exd4 Rac8 $132 {[%csl Rc1,Rc2][%cal Gb6a4]} 19. Kb1 Nc4 20. Bxc4 Rxc4 21.
h5 Rxd4 22. Rxd4 Bxd4 23. Ne2 Bg7 24. hxg6 hxg6) 17. f4 {[%emt 0:10:36]} (17.
h5 c5 18. hxg6 hxg6) 17... c5 {[%emt 0:00:31]} 18. e5 $1 {[%emt 0:06:36] Le
Bg7 est trés fort et il est logique de vouloir l'enfermer} cxd4 {[%emt 0:00:03]
} 19. exd4 {[%emt 0:01:38]} Rac8 $14 {[%emt 0:03:58]} 20. Kb1 {[%emt 0:01:57]}
Qb4 {[%emt 0:13:52]} 21. a3 {[%emt 0:04:47]} Qa5 {[%emt 0:00:02]} 22. Qb3 {
[%emt 0:04:47]} (22. h5 Nd5 {[%csl Rc2,Rc3]}) 22... Rd7 {[%emt 0:08:04]} 23. h5
{[%emt 0:07:04]} Rcd8 {[%emt 0:01:42][%csl Rd4]} 24. hxg6 {[%emt 0:00:10]} (24.
Nb5 {[%cal Gb5d4,Gb5d6]} a6 25. Nd6 Qd5 26. Qh3 {[%cal Gh5g6]} Rxd6 $1) 24...
hxg6 {[%emt 0:00:04]} 25. Nb5 {[%emt 0:01:46]} a6 {[%emt 0:03:56]} 26. Nd6 {
[%emt 0:00:32]} Rxd6 $1 {[%emt 0:00:03]} 27. exd6 {[%emt 0:00:21]} Rxd6 $44 {
[%emt 0:00:02]} 28. Bg2 {[%emt 0:05:57]} Qf5+ {[%emt 0:00:04]} 1/2-1/2